[Event "Titled Tuesday Blitz September 21 2021"]
[White "Levitskiy, Andrey"]
[Black "Sliwicki, Damian"]
[WhiteFideId "14132885"]
[BlackFideId "1127128"]
[WhiteElo "2340"]
[BlackElo "2151"]
[Result "1-0"]
[Round "06"]
[TimeControl "180+1"]
[Date "2021.09.21"]
[WhiteClock "0:00:05"]
[BlackClock "0:00:16"]

1. e4 {[%clk 0:03:00]}  c5 {[%clk 0:02:56]} 2. Nf3 {[%clk 0:03:00]}  g6 {[%clk 0:02:47]} 3. d4 {[%clk 0:03:01]}  cxd4 {[%clk 0:02:48]} 4. Nxd4 {[%clk 0:03:01]}  Nc6 {[%clk 0:02:46]} 5. c4 {[%clk 0:03:02]}  Nf6 {[%clk 0:02:45]} 6. Nc3 {[%clk 0:03:01]}  Nxd4 {[%clk 0:02:45]} 7. Qxd4 {[%clk 0:03:01]}  d6 {[%clk 0:02:45]} 8. Be2 {[%clk 0:03:01]}  Bg7 {[%clk 0:02:44]} 9. Be3 {[%clk 0:03:02]}  O-O {[%clk 0:02:44]} 10. Qd2 {[%clk 0:03:02]}  a5 {[%clk 0:02:43]} 11. O-O {[%clk 0:03:01]}  a4 {[%clk 0:02:42]} 12. Rad1 {[%clk 0:02:59]}  Qa5 {[%clk 0:02:41]} 13. Bd4 {[%clk 0:02:59]}  Be6 {[%clk 0:02:36]} 14. f4 {[%clk 0:03:00]}  Qb4 {[%clk 0:02:04]} 15. a3 {[%clk 0:02:30]}  Qb3 {[%clk 0:01:55]} 16. Rf3 {[%clk 0:02:15]}  Bxc4 {[%clk 0:00:40]} 17. Nd5 {[%clk 0:02:01]}  Bxd5 {[%clk 0:00:26]} 18. Rxb3 {[%clk 0:01:52]}  Bxb3 {[%clk 0:00:27]} 19. Rc1 {[%clk 0:01:48]}  Nxe4 {[%clk 0:00:27]} 20. Qe3 {[%clk 0:01:48]}  Bxd4 {[%clk 0:00:26]} 21. Qxd4 {[%clk 0:01:49]}  Nc5 {[%clk 0:00:25]} 22. f5 {[%clk 0:01:45]}  Rac8 {[%clk 0:00:26]} 23. Rf1 {[%clk 0:01:39]}  Bc2 {[%clk 0:00:24]} 24. f6 {[%clk 0:01:31]}  Ne6 {[%clk 0:00:20]} 25. Qd2 {[%clk 0:01:30]}  exf6 {[%clk 0:00:20]} 26. Rxf6 {[%clk 0:01:30]}  Bf5 {[%clk 0:00:20]} 27. g4 {[%clk 0:01:26]}  Rc2 {[%clk 0:00:20]} 28. Qe3 {[%clk 0:01:21]}  Kg7 {[%clk 0:00:17]} 29. gxf5 {[%clk 0:01:17]}  Kxf6 {[%clk 0:00:17]} 30. fxe6 {[%clk 0:01:17]}  fxe6 {[%clk 0:00:16]} 31. Qf4+ {[%clk 0:01:06]}  Kg7 {[%clk 0:00:16]} 32. Qe3 {[%clk 0:00:48]}  e5 {[%clk 0:00:16]} 33. Bf1 {[%clk 0:00:27]}  Rxb2 {[%clk 0:00:14]} 34. Qd3 {[%clk 0:00:27]}  Rb3 {[%clk 0:00:13]} 35. Qxd6 {[%clk 0:00:25]}  Rb1 {[%clk 0:00:11]} 36. Qxe5+ {[%clk 0:00:26]}  Rf6 {[%clk 0:00:11]} 37. Qe7+ {[%clk 0:00:23]}  Rf7 {[%clk 0:00:11]} 38. Qe5+ {[%clk 0:00:22]}  Rf6 {[%clk 0:00:11]} 39. Qc7+ {[%clk 0:00:20]}  Kh6 {[%clk 0:00:10]} 40. Kg2 {[%clk 0:00:16]}  Rfxf1 {[%clk 0:00:09]} 41. Qc5 {[%clk 0:00:12]}  Rg1+ {[%clk 0:00:09]} 42. Kf2 {[%clk 0:00:09]}  Rgf1+ {[%clk 0:00:07]} 43. Ke2 {[%clk 0:00:09]}  Rbe1+ {[%clk 0:00:07]} 44. Kd2 {[%clk 0:00:09]}  Rd1+ {[%clk 0:00:08]} 45. Ke2 {[%clk 0:00:09]}  Rde1+ {[%clk 0:00:08]} 46. Kd2 {[%clk 0:00:09]}  Rc1 {[%clk 0:00:08]} 47. Qe3+ {[%clk 0:00:07]}  g5 {[%clk 0:00:08]} 48. Qe6+ {[%clk 0:00:07]}  Kh5 {[%clk 0:00:09]} 49. Qh3+ {[%clk 0:00:06]}  Kg6 {[%clk 0:00:09]} 50. Qe6+ {[%clk 0:00:06]}  Kg7 {[%clk 0:00:10]} 51. Qe7+ {[%clk 0:00:06]}  Kh6 {[%clk 0:00:09]} 52. Qe6+ {[%clk 0:00:06]}  Kh5 {[%clk 0:00:09]} 53. Qe8+ {[%clk 0:00:06]}  Kg4 {[%clk 0:00:09]} 54. Qe2+ {[%clk 0:00:05]}  Kh3 {[%clk 0:00:08]} 55. Qh5+ {[%clk 0:00:06]}  Kg2 {[%clk 0:00:09]} 56. Qxg5+ {[%clk 0:00:06]}  Kh1 {[%clk 0:00:09]} 57. Qd5+ {[%clk 0:00:06]}  Kg1 {[%clk 0:00:09]} 58. Qd4+ {[%clk 0:00:06]}  Kh1 {[%clk 0:00:09]} 59. Qe4+ {[%clk 0:00:06]}  Kg1 {[%clk 0:00:10]} 60. Qxb7 {[%clk 0:00:06]}  Rfd1+ {[%clk 0:00:09]} 61. Ke3 {[%clk 0:00:06]}  Re1+ {[%clk 0:00:10]} 62. Kf4 {[%clk 0:00:07]}  Rf1+ {[%clk 0:00:10]} 63. Kg4 {[%clk 0:00:07]}  Rc2 {[%clk 0:00:09]} 64. Qb6+ {[%clk 0:00:07]}  Kh1 {[%clk 0:00:09]} 65. h4 {[%clk 0:00:06]}  Rg2+ {[%clk 0:00:09]} 66. Kh5 {[%clk 0:00:03]}  Rf5+ {[%clk 0:00:09]} 67. Kh6 {[%clk 0:00:03]}  Rg6+ {[%clk 0:00:10]} 68. Qxg6 {[%clk 0:00:02]}  hxg6 {[%clk 0:00:11]} 69. Kxg6 {[%clk 0:00:01]}  Rf3 {[%clk 0:00:12]} 70. h5 {[%clk 0:00:02]}  Rxa3 {[%clk 0:00:13]} 71. h6 {[%clk 0:00:02]}  Rh3 {[%clk 0:00:14]} 72. h7 {[%clk 0:00:03]}  Rh6+ {[%clk 0:00:15]} 73. Kxh6 {[%clk 0:00:03]}  a3 {[%clk 0:00:15]} 74. h8=Q {[%clk 0:00:04]}  a2 {[%clk 0:00:16]} 75. Qa1+ {[%clk 0:00:05]} 1-0


[Site "https://www.chess.com"]

[Event "Titled Tuesday Blitz September 21 2021"]
[White "Lysyj, Igor"]
[Black "Shvedova, Alexandra"]
[WhiteFideId "4150120"]
[BlackFideId "54154782"]
[WhiteElo "2660"]
[BlackElo "1887"]
[Result "1-0"]
[Round "06"]
[TimeControl "180+1"]
[Date "2021.09.21"]
[WhiteClock "0:02:12"]
[BlackClock "0:01:03"]

1. d4 {[%clk 0:02:53]}  Nf6 {[%clk 0:02:59]} 2. c4 {[%clk 0:02:52]}  e6 {[%clk 0:02:59]} 3. Nf3 {[%clk 0:02:52]}  d5 {[%clk 0:02:59]} 4. g3 {[%clk 0:02:52]}  dxc4 {[%clk 0:02:59]} 5. Bg2 {[%clk 0:02:52]}  Nc6 {[%clk 0:02:59]} 6. Qa4 {[%clk 0:02:50]}  Nd7 {[%clk 0:02:58]} 7. Qxc4 {[%clk 0:02:50]}  Nb6 {[%clk 0:02:59]} 8. Qb5 {[%clk 0:02:49]}  a6 {[%clk 0:02:56]} 9. Qd3 {[%clk 0:02:49]}  e5 {[%clk 0:02:56]} 10. Nxe5 {[%clk 0:02:45]}  Nb4 {[%clk 0:02:55]} 11. Qc3 {[%clk 0:02:45]}  Qxd4 {[%clk 0:02:55]} 12. Qxc7 {[%clk 0:02:44]}  Be6 {[%clk 0:02:36]} 13. O-O {[%clk 0:02:28]}  Bd6 {[%clk 0:02:35]} 14. Qxb7 {[%clk 0:02:26]}  Rb8 {[%clk 0:01:52]} 15. Nc6 {[%clk 0:02:24]}  Nxc6 {[%clk 0:01:35]} 16. Qxc6+ {[%clk 0:02:23]}  Bd7 {[%clk 0:01:29]} 17. Qc3 {[%clk 0:02:23]}  Qxc3 {[%clk 0:01:25]} 18. Nxc3 {[%clk 0:02:22]}  Nc4 {[%clk 0:01:24]} 19. b3 {[%clk 0:02:14]}  Be5 {[%clk 0:01:22]} 20. Bf4 {[%clk 0:02:14]}  Bxc3 {[%clk 0:01:07]} 21. Bxb8 {[%clk 0:02:13]}  Bxa1 {[%clk 0:01:07]} 22. Rxa1 {[%clk 0:02:13]}  Ne5 {[%clk 0:01:03]} 23. Bxe5 {[%clk 0:02:12]} 1-0


[Site "https://www.chess.com"]

[Event "Titled Tuesday Blitz September 21 2021"]
[White "Madaminov, Mukhiddin"]
[Black "Baches Garcia, Guillermo"]
[WhiteFideId "14210703"]
[BlackFideId "2209764"]
[WhiteElo "1855"]
[BlackElo "2473"]
[Result "1-0"]
[Round "06"]
[TimeControl "180+1"]
[Date "2021.09.21"]
[WhiteClock "0:01:07"]
[BlackClock "0:00:03"]

1. e4 {[%clk 0:03:00]}  c5 {[%clk 0:02:59]} 2. Nf3 {[%clk 0:03:01]}  d6 {[%clk 0:02:59]} 3. Bb5+ {[%clk 0:03:01]}  Bd7 {[%clk 0:02:59]} 4. c4 {[%clk 0:03:02]}  Nf6 {[%clk 0:02:54]} 5. Nc3 {[%clk 0:03:00]}  g6 {[%clk 0:02:54]} 6. O-O {[%clk 0:03:00]}  Bg7 {[%clk 0:02:54]} 7. d4 {[%clk 0:03:01]}  cxd4 {[%clk 0:02:54]} 8. Nxd4 {[%clk 0:03:02]}  O-O {[%clk 0:02:54]} 9. Be3 {[%clk 0:02:59]}  Nc6 {[%clk 0:02:49]} 10. Nxc6 {[%clk 0:02:56]}  bxc6 {[%clk 0:02:38]} 11. Ba4 {[%clk 0:02:55]}  Ng4 {[%clk 0:02:36]} 12. Bd2 {[%clk 0:02:54]}  Ne5 {[%clk 0:02:26]} 13. Qe2 {[%clk 0:02:51]}  c5 {[%clk 0:02:05]} 14. Bxd7 {[%clk 0:02:48]}  Qxd7 {[%clk 0:02:04]} 15. Rad1 {[%clk 0:02:49]}  Nc6 {[%clk 0:01:59]} 16. Be1 {[%clk 0:02:45]}  Nd4 {[%clk 0:01:53]} 17. Qd3 {[%clk 0:02:46]}  e6 {[%clk 0:01:48]} 18. b3 {[%clk 0:02:45]}  f5 {[%clk 0:01:42]} 19. Bd2 {[%clk 0:02:41]}  f4 {[%clk 0:01:37]} 20. f3 {[%clk 0:02:36]}  g5 {[%clk 0:01:33]} 21. Ne2 {[%clk 0:02:35]}  h5 {[%clk 0:01:26]} 22. Be1 {[%clk 0:02:33]}  Be5 {[%clk 0:01:08]} 23. Bf2 {[%clk 0:02:31]}  Nxe2+ {[%clk 0:01:07]} 24. Qxe2 {[%clk 0:02:32]}  Qg7 {[%clk 0:01:05]} 25. Rd3 {[%clk 0:02:29]}  g4 {[%clk 0:01:02]} 26. Rfd1 {[%clk 0:02:24]}  g3 {[%clk 0:00:42]} 27. Be1 {[%clk 0:02:19]}  gxh2+ {[%clk 0:00:39]} 28. Kxh2 {[%clk 0:02:20]}  Rf6 {[%clk 0:00:36]} 29. Bc3 {[%clk 0:02:09]}  Qg3+ {[%clk 0:00:16]} 30. Kh1 {[%clk 0:02:09]}  Raf8 {[%clk 0:00:16]} 31. Bxe5 {[%clk 0:01:39]}  dxe5 {[%clk 0:00:16]} 32. Qe1 {[%clk 0:01:40]}  Qg5 {[%clk 0:00:15]} 33. Rd8 {[%clk 0:01:26]}  h4 {[%clk 0:00:15]} 34. Rxf8+ {[%clk 0:01:25]}  Rxf8 {[%clk 0:00:14]} 35. Qf2 {[%clk 0:01:25]}  Rf6 {[%clk 0:00:12]} 36. Qxc5 {[%clk 0:01:21]}  Rg6 {[%clk 0:00:08]} 37. Qc8+ {[%clk 0:01:13]}  Kh7 {[%clk 0:00:08]} 38. Rd7+ {[%clk 0:01:13]}  Rg7 {[%clk 0:00:08]} 39. Rxg7+ {[%clk 0:01:14]}  Qxg7 {[%clk 0:00:08]} 40. Qxe6 {[%clk 0:01:14]}  Qg3 {[%clk 0:00:08]} 41. Qf5+ {[%clk 0:01:09]}  Kh6 {[%clk 0:00:08]} 42. Qe6+ {[%clk 0:01:06]}  Kh7 {[%clk 0:00:08]} 43. Qg4 {[%clk 0:01:06]}  Qe1+ {[%clk 0:00:03]} 44. Kh2 {[%clk 0:01:07]} 1-0


[Site "https://www.chess.com"]

[Event "Titled Tuesday Blitz September 21 2021"]
[White "Makhnev, Denis"]
[Black "Kushko, Dmitriy"]
[WhiteFideId "13707647"]
[BlackFideId "14162261"]
[WhiteElo "2537"]
[BlackElo "2219"]
[Result "1-0"]
[Round "06"]
[TimeControl "180+1"]
[Date "2021.09.21"]
[WhiteClock "0:02:25"]
[BlackClock "0:00:27"]

1. Nf3 {[%clk 0:03:00]}  Nf6 {[%clk 0:02:59]} 2. c4 {[%clk 0:03:01]}  g6 {[%clk 0:02:59]} 3. Nc3 {[%clk 0:03:01]}  Bg7 {[%clk 0:02:59]} 4. g3 {[%clk 0:03:01]}  O-O {[%clk 0:02:59]} 5. Bg2 {[%clk 0:03:02]}  d6 {[%clk 0:03:00]} 6. O-O {[%clk 0:03:02]}  Nc6 {[%clk 0:02:55]} 7. Rb1 {[%clk 0:03:02]}  a5 {[%clk 0:02:54]} 8. a3 {[%clk 0:03:01]}  e5 {[%clk 0:02:54]} 9. b4 {[%clk 0:03:00]}  axb4 {[%clk 0:02:53]} 10. axb4 {[%clk 0:03:01]}  Re8 {[%clk 0:02:07]} 11. b5 {[%clk 0:03:00]}  Nd4 {[%clk 0:02:07]} 12. d3 {[%clk 0:02:59]}  Bg4 {[%clk 0:02:00]} 13. e3 {[%clk 0:02:57]}  Nxf3+ {[%clk 0:01:59]} 14. Bxf3 {[%clk 0:02:58]}  Bxf3 {[%clk 0:01:46]} 15. Qxf3 {[%clk 0:02:59]}  e4 {[%clk 0:01:12]} 16. dxe4 {[%clk 0:02:49]}  Qe7 {[%clk 0:01:06]} 17. Nd5 {[%clk 0:02:47]}  Qxe4 {[%clk 0:00:34]} 18. Nxf6+ {[%clk 0:02:27]}  Bxf6 {[%clk 0:00:34]} 19. Qxf6 {[%clk 0:02:27]}  Qxb1 {[%clk 0:00:27]} 20. Bb2 {[%clk 0:02:25]} 1-0


[Site "https://www.chess.com"]

[Event "Titled Tuesday Blitz September 21 2021"]
[White "Maksimenko, Viktor"]
[Black "Dolzhykova, Kateryna"]
[WhiteFideId "13710478"]
[BlackFideId "14113414"]
[WhiteElo "2269"]
[BlackElo "2180"]
[Result "0-1"]
[Round "06"]
[TimeControl "180+1"]
[Date "2021.09.21"]
[WhiteClock "0:00:31"]
[BlackClock "0:00:04"]

1. d4 {[%clk 0:03:00]}  Nf6 {[%clk 0:02:58]} 2. c4 {[%clk 0:03:00]}  e6 {[%clk 0:02:58]} 3. Nf3 {[%clk 0:03:00]}  c5 {[%clk 0:02:54]} 4. d5 {[%clk 0:03:00]}  exd5 {[%clk 0:02:52]} 5. cxd5 {[%clk 0:03:01]}  d6 {[%clk 0:02:48]} 6. e4 {[%clk 0:03:01]}  g6 {[%clk 0:02:44]} 7. Bd3 {[%clk 0:03:00]}  Bg7 {[%clk 0:02:42]} 8. O-O {[%clk 0:03:00]}  O-O {[%clk 0:02:42]} 9. Nbd2 {[%clk 0:03:00]}  Nbd7 {[%clk 0:02:40]} 10. h3 {[%clk 0:02:59]}  Nh5 {[%clk 0:02:30]} 11. Nc4 {[%clk 0:02:50]}  Nb6 {[%clk 0:02:24]} 12. Bg5 {[%clk 0:02:35]}  f6 {[%clk 0:02:17]} 13. Be3 {[%clk 0:02:24]}  Nxc4 {[%clk 0:02:16]} 14. Bxc4 {[%clk 0:02:25]}  f5 {[%clk 0:02:15]} 15. exf5 {[%clk 0:02:23]}  Bxf5 {[%clk 0:02:12]} 16. Ng5 {[%clk 0:02:23]}  Nf6 {[%clk 0:02:06]} 17. Ne6 {[%clk 0:02:23]}  Bxe6 {[%clk 0:02:05]} 18. dxe6 {[%clk 0:02:24]}  Qe7 {[%clk 0:01:57]} 19. Bg5 {[%clk 0:02:22]}  a6 {[%clk 0:01:44]} 20. a4 {[%clk 0:02:20]}  h6 {[%clk 0:01:43]} 21. Bxf6 {[%clk 0:02:19]}  Rxf6 {[%clk 0:01:40]} 22. Qd3 {[%clk 0:02:17]}  Raf8 {[%clk 0:01:37]} 23. Rae1 {[%clk 0:02:14]}  Rf5 {[%clk 0:01:32]} 24. Re4 {[%clk 0:02:06]}  d5 {[%clk 0:01:23]} 25. Rg4 {[%clk 0:01:49]}  dxc4 {[%clk 0:01:15]} 26. Qxc4 {[%clk 0:01:50]}  Kh7 {[%clk 0:01:11]} 27. Rd1 {[%clk 0:01:49]}  Bd4 {[%clk 0:00:55]} 28. Rd2 {[%clk 0:01:19]}  h5 {[%clk 0:00:42]} 29. Re4 {[%clk 0:01:16]}  Rxf2 {[%clk 0:00:39]} 30. Rexd4 {[%clk 0:01:16]}  Rf1+ {[%clk 0:00:35]} 31. Kh2 {[%clk 0:01:10]}  cxd4 {[%clk 0:00:34]} 32. Rxd4 {[%clk 0:01:10]}  Kh8 {[%clk 0:00:21]} 33. Rd7 {[%clk 0:01:10]}  Qf6 {[%clk 0:00:19]} 34. Qe4 {[%clk 0:00:57]}  Qf4+ {[%clk 0:00:18]} 35. Qxf4 {[%clk 0:00:57]}  R1xf4 {[%clk 0:00:16]} 36. e7 {[%clk 0:00:58]}  Rg8 {[%clk 0:00:15]} 37. Rxb7 {[%clk 0:00:51]}  Re4 {[%clk 0:00:14]} 38. b4 {[%clk 0:00:52]}  Re8 {[%clk 0:00:13]} 39. b5 {[%clk 0:00:52]}  axb5 {[%clk 0:00:12]} 40. a5 {[%clk 0:00:53]}  R4xe7 {[%clk 0:00:11]} 41. Rxb5 {[%clk 0:00:52]}  Re5 {[%clk 0:00:11]} 42. Rb6 {[%clk 0:00:52]}  Rxa5 {[%clk 0:00:11]} 43. Rxg6 {[%clk 0:00:52]}  Rg8 {[%clk 0:00:10]} 44. Rb6 {[%clk 0:00:47]}  Rag5 {[%clk 0:00:07]} 45. g3 {[%clk 0:00:37]}  Kh7 {[%clk 0:00:05]} 46. Rb7+ {[%clk 0:00:34]}  R8g7 {[%clk 0:00:05]} 47. Rb3 {[%clk 0:00:35]}  h4 {[%clk 0:00:05]} 48. g4 {[%clk 0:00:35]}  Rc7 {[%clk 0:00:04]} 49. Kg2 {[%clk 0:00:32]}  Rc2+ {[%clk 0:00:04]} 50. Kf3 {[%clk 0:00:33]}  Rgc5 {[%clk 0:00:04]} 51. Kf4 {[%clk 0:00:34]}  R2c4+ {[%clk 0:00:04]} 52. Kf3 {[%clk 0:00:31]}  Rc3+ {[%clk 0:00:04]} 0-1


[Site "https://www.chess.com"]

[Event "Titled Tuesday Blitz September 21 2021"]
[White "Manafov, Vugar"]
[Black "Martinovici, Ilia"]
[WhiteFideId "13410814"]
[BlackFideId "13907034"]
[WhiteElo "2274"]
[BlackElo "2303"]
[Result "1-0"]
[Round "06"]
[TimeControl "180+1"]
[Date "2021.09.21"]
[WhiteClock "0:00:16"]
[BlackClock "0:00:23"]

1. Nf3 {[%clk 0:03:00]}  d5 {[%clk 0:02:59]} 2. g3 {[%clk 0:03:01]}  c6 {[%clk 0:02:59]} 3. Bg2 {[%clk 0:03:01]}  Nf6 {[%clk 0:02:58]} 4. O-O {[%clk 0:03:01]}  Bg4 {[%clk 0:02:59]} 5. d3 {[%clk 0:03:00]}  Nbd7 {[%clk 0:02:57]} 6. Nc3 {[%clk 0:03:01]}  e5 {[%clk 0:02:56]} 7. e4 {[%clk 0:03:01]}  Bd6 {[%clk 0:02:53]} 8. h3 {[%clk 0:03:00]}  Bxf3 {[%clk 0:02:42]} 9. Bxf3 {[%clk 0:02:58]}  dxe4 {[%clk 0:02:42]} 10. dxe4 {[%clk 0:02:55]}  Nc5 {[%clk 0:02:42]} 11. Bg2 {[%clk 0:02:52]}  O-O {[%clk 0:02:40]} 12. Be3 {[%clk 0:02:49]}  Ne6 {[%clk 0:02:39]} 13. Ne2 {[%clk 0:02:38]}  Bc5 {[%clk 0:02:37]} 14. Qc1 {[%clk 0:02:33]}  Qb6 {[%clk 0:02:34]} 15. Bxc5 {[%clk 0:02:18]}  Qxc5 {[%clk 0:02:33]} 16. c3 {[%clk 0:02:15]}  Rad8 {[%clk 0:02:31]} 17. Qc2 {[%clk 0:02:13]}  Rd7 {[%clk 0:02:19]} 18. Rfd1 {[%clk 0:02:04]}  Rfd8 {[%clk 0:02:20]} 19. Rxd7 {[%clk 0:02:04]}  Rxd7 {[%clk 0:02:21]} 20. Rd1 {[%clk 0:02:04]}  Rxd1+ {[%clk 0:02:16]} 21. Qxd1 {[%clk 0:02:05]}  Kf8 {[%clk 0:02:14]} 22. b4 {[%clk 0:01:59]}  Qe7 {[%clk 0:02:08]} 23. f3 {[%clk 0:01:49]}  Qd7 {[%clk 0:02:03]} 24. Qc2 {[%clk 0:01:47]}  Ke7 {[%clk 0:02:03]} 25. Nc1 {[%clk 0:01:44]}  h5 {[%clk 0:01:52]} 26. h4 {[%clk 0:01:36]}  Qd6 {[%clk 0:01:51]} 27. Bf1 {[%clk 0:01:32]}  g5 {[%clk 0:01:39]} 28. hxg5 {[%clk 0:01:25]}  Nxg5 {[%clk 0:01:40]} 29. Be2 {[%clk 0:01:25]}  Qe6 {[%clk 0:01:33]} 30. Qd2 {[%clk 0:01:13]}  Nfh7 {[%clk 0:01:33]} 31. Qe3 {[%clk 0:01:02]}  b6 {[%clk 0:01:33]} 32. Bf1 {[%clk 0:00:57]}  f6 {[%clk 0:01:23]} 33. a4 {[%clk 0:00:53]}  Nf8 {[%clk 0:01:23]} 34. a5 {[%clk 0:00:53]}  Nd7 {[%clk 0:01:18]} 35. Bd3 {[%clk 0:00:48]}  h4 {[%clk 0:00:56]} 36. gxh4 {[%clk 0:00:27]}  Nh3+ {[%clk 0:00:56]} 37. Kh2 {[%clk 0:00:28]}  Nf4 {[%clk 0:00:56]} 38. Bf1 {[%clk 0:00:28]}  Qg8 {[%clk 0:00:45]} 39. Qg1 {[%clk 0:00:23]}  Qh8 {[%clk 0:00:38]} 40. Qg3 {[%clk 0:00:20]}  bxa5 {[%clk 0:00:37]} 41. bxa5 {[%clk 0:00:20]}  Nc5 {[%clk 0:00:36]} 42. Ne2 {[%clk 0:00:21]}  Nce6 {[%clk 0:00:25]} 43. Nxf4 {[%clk 0:00:20]}  Nxf4 {[%clk 0:00:26]} 44. Qg4 {[%clk 0:00:18]}  c5 {[%clk 0:00:23]} 45. Bb5 {[%clk 0:00:17]}  Kd6 {[%clk 0:00:23]} 46. Qd7# {[%clk 0:00:16]} 1-0


[Site "https://www.chess.com"]

[Event "Titled Tuesday Blitz September 21 2021"]
[White "Martins, Vinicius Tine"]
[Black "Kwon, Sehyun"]
[WhiteFideId "2112884"]
[BlackFideId "13203088"]
[WhiteElo "2373"]
[BlackElo "1778"]
[Result "0-1"]
[Round "06"]
[TimeControl "180+1"]
[Date "2021.09.21"]
[WhiteClock "0:00:10"]
[BlackClock "0:00:05"]

1. e4 {[%clk 0:03:00]}  g6 {[%clk 0:03:00]} 2. d4 {[%clk 0:03:00]}  Bg7 {[%clk 0:02:59]} 3. Nc3 {[%clk 0:02:59]}  d6 {[%clk 0:02:59]} 4. h4 {[%clk 0:03:00]}  h6 {[%clk 0:02:31]} 5. h5 {[%clk 0:02:57]}  g5 {[%clk 0:02:29]} 6. Bc4 {[%clk 0:02:58]}  e6 {[%clk 0:02:28]} 7. Nge2 {[%clk 0:02:56]}  Ne7 {[%clk 0:02:28]} 8. Be3 {[%clk 0:02:53]}  d5 {[%clk 0:02:29]} 9. Bd3 {[%clk 0:02:52]}  a6 {[%clk 0:02:19]} 10. f4 {[%clk 0:02:36]}  gxf4 {[%clk 0:02:18]} 11. Nxf4 {[%clk 0:02:32]}  c5 {[%clk 0:02:15]} 12. exd5 {[%clk 0:02:24]}  cxd4 {[%clk 0:02:04]} 13. Qg4 {[%clk 0:01:59]}  Rg8 {[%clk 0:01:48]} 14. Bh7 {[%clk 0:01:52]}  e5 {[%clk 0:01:42]} 15. Ne6 {[%clk 0:01:52]}  Bxe6 {[%clk 0:00:49]} 16. dxe6 {[%clk 0:01:47]}  f5 {[%clk 0:00:49]} 17. Qg3 {[%clk 0:01:36]}  dxe3 {[%clk 0:00:49]} 18. Rd1 {[%clk 0:01:29]}  Qb6 {[%clk 0:00:43]} 19. Bxg8 {[%clk 0:01:27]}  Kf8 {[%clk 0:00:29]} 20. Bf7 {[%clk 0:01:19]}  Nbc6 {[%clk 0:00:24]} 21. Rd7 {[%clk 0:01:13]}  f4 {[%clk 0:00:18]} 22. Qf3 {[%clk 0:01:09]}  Qxb2 {[%clk 0:00:18]} 23. Nd1 {[%clk 0:01:05]}  Qxc2 {[%clk 0:00:13]} 24. Bg6 {[%clk 0:00:46]}  Qc5 {[%clk 0:00:11]} 25. Qe4 {[%clk 0:00:38]}  Qb4+ {[%clk 0:00:07]} 26. Ke2 {[%clk 0:00:33]}  Qxe4 {[%clk 0:00:07]} 27. Bxe4 {[%clk 0:00:32]}  Nd4+ {[%clk 0:00:08]} 28. Kd3 {[%clk 0:00:30]}  Nxe6 {[%clk 0:00:08]} 29. Kc4 {[%clk 0:00:18]}  Rc8+ {[%clk 0:00:06]} 30. Kb4 {[%clk 0:00:18]}  Nc5 {[%clk 0:00:06]} 31. Bxb7 {[%clk 0:00:15]}  Nxd7 {[%clk 0:00:06]} 32. Bxc8 {[%clk 0:00:15]}  Nxc8 {[%clk 0:00:07]} 33. Nc3 {[%clk 0:00:15]}  Nd6 {[%clk 0:00:06]} 34. Ka5 {[%clk 0:00:15]}  Nc5 {[%clk 0:00:06]} 35. Kb6 {[%clk 0:00:15]}  Nce4 {[%clk 0:00:05]} 36. Nd5 {[%clk 0:00:13]}  Kf7 {[%clk 0:00:05]} 37. Kxa6 {[%clk 0:00:12]}  Ke6 {[%clk 0:00:05]} 38. Nc7+ {[%clk 0:00:11]}  Kf5 {[%clk 0:00:06]} 39. Nd5 {[%clk 0:00:11]}  Ng3 {[%clk 0:00:06]} 40. Re1 {[%clk 0:00:11]}  e2 {[%clk 0:00:06]} 41. Nc3 {[%clk 0:00:10]}  Nde4 {[%clk 0:00:05]} 42. Nxe2 {[%clk 0:00:10]}  Nxe2 {[%clk 0:00:05]} 43. Rxe2 {[%clk 0:00:10]}  Ng3 {[%clk 0:00:06]} 44. Rb2 {[%clk 0:00:09]}  e4 {[%clk 0:00:06]} 45. Kb5 {[%clk 0:00:10]}  Bxb2 {[%clk 0:00:05]} 0-1


[Site "https://www.chess.com"]